fUSD/lending_fUSD_20240121
["ID","MTS","AMOUNT","RATE_DAILY","PERIOD"]
[312438770,1705876396936,-500.0,0.00041095,31]
[312438771,1705876396961,-2165.18,0.00041095,31]
[312438772,1705876396986,-3737.76,0.00041095,31]
[312438773,1705876397009,-1298.03,0.00041095,31]
[312438774,1705876397031,-8214.94,0.00041095,31]
[312438775,1705876397060,-722.05,0.00041095,31]
[312438776,1705876397086,-500.0,0.00041095,31]
[312438777,1705876397110,-970.46,0.00041095,31]
[312438778,1705876397135,-621.90189549,0.00041095,31]
[312438779,1705876397159,-1048.9,0.00041095,31]
[312438780,1705876397183,-500.0,0.00041095,31]
[312438781,1705876397207,-500.0,0.00041095,31]
[312438782,1705876397231,-3948.36,0.00041095,31]
[312438783,1705876397257,-16806.33,0.00041095,31]
[312438784,1705876397280,-500.0,0.00041095,31]
[312438785,1705876397307,-500.0,0.00041095,31]
[312438786,1705876397330,-1064.74,0.00041095,31]
[312438787,1705876397356,-6101.21,0.00041095,31]
[312438788,1705876397380,-2855.03,0.00041095,31]
[312438789,1705876397404,-500.32,0.00041095,31]
[312438790,1705876397431,-1126.85,0.00041095,31]
[312438791,1705876397455,-500.0,0.00041095,31]
[312438792,1705876397478,-675.32,0.00041095,31]
[312438793,1705876397501,-980.99,0.00041095,31]
[312438794,1705876397524,-574.76,0.00041095,31]
[312438795,1705876397548,-1933.9,0.00041095,31]
[312438796,1705876397572,-500.0,0.00041095,31]
[312438797,1705876397597,-500.0,0.00041095,31]
[312438798,1705876397625,-500.0,0.00041095,31]
[312438799,1705876397649,-500.0,0.00041095,31]
[312438800,1705876397673,-500.0,0.00041095,31]
[312438801,1705876397698,-2304.18,0.00041095,31]
[312438802,1705876397722,-500.0,0.00041095,31]
[312438803,1705876397747,-595.6,0.00041095,31]
[312438804,1705876397773,-500.0,0.00041095,31]
[312438805,1705876397798,-1448.02,0.00041095,31]
[312438806,1705876397822,-500.0,0.00041095,31]
[312438807,1705876397848,-2414.11,0.00041095,31]
[312438808,1705876397873,-500.0,0.00041095,31]
[312438809,1705876397897,-2030.45,0.00041095,31]
[312438810,1705876397921,-3726.81,0.00041095,31]
[312438811,1705876397945,-306.07967946,0.00041095,31]
[312438812,1705876397972,-500.0,0.00041095,31]
[312438813,1705876397996,-500.0,0.00041095,31]
[312438814,1705876398340,-500.0,0.00041095,31]
[312438815,1705876398366,-500.0,0.00041095,31]
[312438816,1705876398391,-500.0,0.00041095,31]
[312438817,1705876398416,-500.0,0.00041095,31]
[312438818,1705876398440,-500.0,0.00041095,31]
[312438819,1705876398464,-500.0,0.00041095,31]
[312438820,1705876398489,-500.0,0.00041095,31]
[312438821,1705876398513,-500.0,0.00041095,31]
[312438822,1705876398537,-847.51,0.00041095,31]
[312438823,1705876398562,-500.0,0.00041095,31]
[312438824,1705876398587,-500.0,0.00041095,31]
[312438825,1705876398612,-898.05,0.00041095,31]
[312438826,1705876398643,-2858.65,0.00041095,31]
[312438827,1705876398669,-500.0,0.00041095,31]
[312438828,1705876398696,-1358.12,0.00041095,31]
[312438829,1705876398724,-1312.1,0.00041095,31]
[312438830,1705876398753,-500.0,0.00041095,31]
[312438831,1705876398781,-500.0,0.00041095,31]
[312438832,1705876398809,-500.0,0.00041095,31]
[312438833,1705876398837,-583.74,0.00041095,31]
[312438834,1705876398866,-568.68,0.00041095,31]
[312438835,1705876398894,-614.24,0.00041095,31]
[312438836,1705876398921,-1606.99,0.00041095,31]
[312438837,1705876398948,-500.0,0.00041095,31]
[312438838,1705876398979,-500.0,0.00041095,31]
[312438839,1705876399008,-500.0,0.00041095,31]
[312438840,1705876399037,-1223.45,0.00041095,31]
[312438841,1705876399065,-570.62363583,0.00041095,31]
[312438842,1705876399093,-1418.03,0.00041095,31]
[312438843,1705876399120,-500.0,0.00041095,31]
[312438844,1705876399148,-500.0,0.00041095,31]
[312438845,1705876399175,-500.0,0.00041095,31]
[312438846,1705876399209,-2466.94,0.00041095,31]
[312438847,1705876399237,-500.0,0.00041095,31]
[312438848,1705876399265,-500.0,0.00041095,31]
[312438849,1705876399293,-500.0,0.00041095,31]
[312438850,1705876399322,-924.91,0.00041095,31]
[312438851,1705876399349,-500.0,0.00041095,31]
[312438852,1705876399377,-500.0,0.00041095,31]
[312438853,1705876399404,-1000.0,0.00041095,30]
[312438854,1705876399431,-1537.83,0.00041095,31]
[312438855,1705876399458,-2368.54,0.00041095,31]
[312438856,1705876399485,-500.0,0.00041095,31]
[312438857,1705876399513,-640.11,0.00041095,31]
[312438858,1705876399539,-640.18,0.00041095,31]
[312438859,1705876399567,-2585.64,0.00041095,31]
[312438860,1705876399593,-506.59290762,0.00041095,31]
[312438861,1705876399619,-500.0,0.00041095,31]
[312438862,1705876399645,-500.0,0.00041095,31]
[312438863,1705876399671,-500.0,0.00041095,31]
[312438864,1705876399698,-500.0,0.00041095,31]
[312438865,1705876399726,-500.0,0.00041095,31]
[312438866,1705876399757,-969.19,0.00041095,31]
[312438867,1705876399784,-500.0,0.00041095,31]
[312438868,1705876399813,-500.0,0.00041095,31]
[312438869,1705876399841,-5901.0,0.00041095,31]
[312438870,1705876399867,-500.0,0.00041095,31]
[312438871,1705876399894,-5197.8,0.00041095,31]
[312438872,1705876399922,-988.92,0.00041095,31]
[312438873,1705876399952,-1147.32,0.00041095,31]
[312438874,1705876399982,-500.0,0.00041095,31]
[312438875,1705876400010,-503.74,0.00041095,31]
[312438876,1705876400038,-500.0,0.00041095,31]
[312438877,1705876400066,-500.0,0.00041095,31]
[312438878,1705876400094,-500.0,0.00041095,31]
[312438879,1705876400121,-1204.72,0.00041095,31]
[312438880,1705876400148,-500.0,0.00041095,31]
[312438881,1705876400175,-500.0,0.00041095,31]
[312438882,1705876400202,-500.0,0.00041095,31]
[312438883,1705876400228,-1125.5,0.00041095,31]
[312438884,1705876400255,-553.42,0.00041095,31]
[312438885,1705876400281,-500.0,0.00041095,31]
[312438886,1705876400308,-500.0,0.00041095,31]
[312438887,1705876400333,-500.0,0.00041095,31]
[312438888,1705876400358,-465.67220929,0.00041095,31]
[312438889,1705876400384,-706.24,0.00041095,31]
[312438890,1705876400411,-500.0,0.00041095,31]
[312438891,1705876400439,-500.0,0.00041095,31]
[312438892,1705876400465,-2915.19,0.00041095,31]
[312438893,1705876400492,-500.0,0.00041095,31]
[312438894,1705876400518,-500.0,0.00041095,31]
[312438895,1705876400548,-2998.4,0.00041095,31]
[312438896,1705876400575,-500.0,0.00041095,31]
[312438897,1705876400600,-500.0,0.00041095,31]
[312438898,1705876400626,-759.04,0.00041095,31]
[312438899,1705876400651,-1615.44,0.00041095,31]
[312438900,1705876400676,-500.0,0.00041095,31]
[312438901,1705876400702,-993.54,0.00041095,31]
[312438902,1705876400727,-500.0,0.00041095,31]
[312438903,1705876400752,-500.0,0.00041095,31]
[312438904,1705876400777,-500.0,0.00041095,31]
[312438905,1705876400802,-500.0,0.00041095,31]
[312438906,1705876400827,-618.9,0.00041095,31]
[312438907,1705876400853,-500.0,0.00041095,31]
[312438908,1705876400877,-500.0,0.00041095,31]
[312438909,1705876400902,-500.0,0.00041095,31]
[312438910,1705876400927,-620.1,0.00041095,31]
[312438911,1705876400953,-3202.93,0.00041095,31]
[312438912,1705876400982,-751.8,0.00041095,31]
[312438913,1705876401007,-500.0,0.00041095,31]
[312438914,1705876401037,-500.0,0.00041095,31]
[312438915,1705876401062,-500.0,0.00041095,31]
[312438916,1705876401087,-300.0,0.00041095,31]
[312438917,1705876401113,-567.88,0.00041095,31]
[312438918,1705876401140,-500.0,0.00041095,31]
[312438919,1705876401453,-500.0,0.00041095,31]
[312438920,1705876401479,-500.0,0.00041095,31]
[312438921,1705876401504,-500.0,0.00041095,31]
[312438922,1705876401528,-500.0,0.00041095,31]
[312438923,1705876401554,-500.0,0.00041095,31]
[312438924,1705876401578,-500.0,0.00041095,31]
[312438925,1705876401603,-500.0,0.00041095,31]
[312438926,1705876401628,-500.0,0.00041095,31]
[312438927,1705876401652,-500.0,0.00041095,50]
[312438928,1705876401677,-9846.47,0.00041095,31]
[312438929,1705876401702,-8092.29,0.00041095,31]
[312438930,1705876401727,-791.81,0.00041095,31]
[312438931,1705876401751,-596.28,0.00041095,31]
[312438932,1705876401776,-500.0,0.00041095,31]
[312438933,1705876401801,-9012.61,0.00041095,31]
[312438934,1705876401825,-618.01,0.00041095,31]
[312438935,1705876401850,-500.0,0.00041095,31]
[312438936,1705876401874,-500.0,0.00041095,31]
[312438937,1705876401898,-1020.43,0.00041095,31]
[312438938,1705876401922,-730.33,0.00041095,31]
[312438939,1705876401945,-500.0,0.00041095,31]
[312438940,1705876401970,-500.0,0.00041095,31]
[312438941,1705876401995,-500.0,0.00041095,31]
[312438942,1705876402018,-500.0,0.00041095,31]
[312438943,1705876402042,-500.0,0.00041095,31]
[312438944,1705876402065,-500.0,0.00041095,31]
[312438945,1705876402089,-500.0,0.00041095,31]
[312438946,1705876402119,-856.84,0.00041095,31]
[312438947,1705876402144,-1622.37,0.00041095,31]
[312438948,1705876402168,-500.0,0.00041095,31]
[312438949,1705876402192,-500.0,0.00041095,31]
[312438950,1705876402217,-10562.0,0.00041095,31]
[312438951,1705876402241,-508.30705957,0.00041095,31]
[312438952,1705876402266,-11680.93,0.00041095,31]
[312438953,1705876402290,-3548.3,0.00041095,31]
[312438954,1705876402314,-500.0,0.00041095,31]
[312438955,1705876402338,-500.0,0.00041095,31]
[312438956,1705876402362,-735.19,0.00041095,31]
[312438957,1705876402386,-500.0,0.00041095,31]
[312438958,1705876402409,-500.0,0.00041095,31]
[312438959,1705876402433,-500.0,0.00041095,31]
[312438960,1705876402457,-7532.62,0.00041095,31]
[312438961,1705876402481,-500.0,0.00041095,31]
[312438962,1705876402506,-500.0,0.00041095,31]
[312438963,1705876402530,-500.0,0.00041095,31]
[312438964,1705876402556,-500.0,0.00041095,31]
[312438965,1705876402580,-500.0,0.00041095,31]
[312438966,1705876402605,-2377.26,0.00041095,31]
[312438967,1705876402631,-871.97,0.00041095,31]
[312438968,1705876402656,-766.87,0.00041095,31]
[312438969,1705876402679,-500.0,0.00041095,31]
[312438970,1705876402703,-500.0,0.00041095,31]
[312438971,1705876402728,-500.0,0.00041095,31]
[312438972,1705876402752,-500.0,0.00041095,31]
[312438973,1705876402775,-500.0,0.00041095,31]
[312438974,1705876402798,-500.0,0.00041095,31]
[312438975,1705876402823,-8526.19,0.00041095,31]
[312438976,1705876402847,-500.0,0.00041095,31]
[312438977,1705876402871,-501.17671804,0.00041095,31]
[312438978,1705876402895,-500.0,0.00041095,31]
[312438979,1705876402921,-500.0,0.00041095,31]
[312438980,1705876402945,-1112.8,0.00041095,31]
[312438981,1705876402973,-1755.43,0.00041095,31]
[312438982,1705876402996,-500.0,0.00041095,31]
[312438983,1705876403019,-641.2,0.00041095,31]
[312438984,1705876403042,-881.88,0.00041095,31]
[312438985,1705876403066,-1038.39,0.00041095,31]
[312438986,1705876403090,-500.0,0.00041095,31]
[312438987,1705876403113,-500.0,0.00041095,31]
[312438988,1705876403137,-509.80278314,0.00041095,31]
[312438989,1705876403159,-647.93,0.00041095,31]
[312438990,1705876403182,-500.0,0.00041095,31]
[312438991,1705876403206,-4098.91,0.00041095,31]
[312438992,1705876403230,-666.36,0.00041095,31]
[312438993,1705876403255,-169.64215272,0.00041095,31]
[312438994,1705876403277,-500.0,0.00041095,31]
[312438995,1705876403301,-500.0,0.00041095,31]
[312438996,1705876403324,-500.0,0.00041095,31]
[312438997,1705876403350,-4639.17,0.00041095,31]
[312438998,1705876403373,-3856.7,0.00041095,31]
[312438999,1705876403396,-500.0,0.00041095,31]
[312439000,1705876403419,-673.21,0.00041095,31]
[312439001,1705876403443,-1892.19,0.00041095,31]
[312439002,1705876403467,-3298.95,0.00041095,31]
[312439003,1705876403492,-500.0,0.00041095,31]
[312439004,1705876403515,-500.0,0.00041095,60]
[312439005,1705876403539,-564.72637288,0.00041095,31]
[312439006,1705876403562,-500.0,0.00041095,31]
[312439007,1705876403585,-500.0,0.00041095,31]
[312439008,1705876403608,-500.0,0.00041095,31]
[312439009,1705876403630,-500.0,0.00041095,31]
[312439010,1705876403654,-992.34,0.00041095,31]
[312439011,1705876403677,-500.0,0.00041095,31]
[312439012,1705876403702,-2034.53,0.00041095,31]
[312439013,1705876403726,-500.0,0.00041095,31]
[312439014,1705876403759,-500.0,0.00041095,31]
[312439015,1705876403783,-660.28,0.00041095,31]
[312439016,1705876403807,-500.0,0.00041095,31]
[312439017,1705876403831,-500.0,0.00041095,31]
[312439018,1705876403855,-500.0,0.00041095,31]
[312439019,1705876403878,-28036.98,0.00041095,31]
[312439020,1705876403901,-500.0,0.00041095,31]
[312439021,1705876403925,-500.0,0.00041095,31]
[312439022,1705876403948,-1938.75,0.00041095,31]
[312439023,1705876403982,-500.0,0.00041095,31]
[312439024,1705876404249,-549.75,0.00041095,31]
[312439025,1705876404275,-1185.61,0.00041095,31]
[312439026,1705876404300,-903.34,0.00041095,31]
[312439027,1705876404324,-500.0,0.00041095,31]
[312439028,1705876404348,-3123.65,0.00041095,31]
[312439029,1705876404372,-208.03816405,0.00041095,31]
[312439030,1705876404395,-500.0,0.00041095,31]
[312439031,1705876404418,-1216.46,0.00041095,31]
[312439032,1705876404442,-500.0,0.00041095,31]
[312439033,1705876404465,-523.12635772,0.00041095,31]
[312439034,1705876404488,-514.20170646,0.00041095,31]
[312439035,1705876404511,-1029.32,0.00041095,31]
[312439036,1705876404534,-500.0,0.00041095,31]
[312439037,1705876404556,-500.0,0.00041095,31]
[312439038,1705876404580,-1296.81,0.00041095,31]
[312439039,1705876404604,-686.97,0.00041095,31]
[312439040,1705876404627,-500.0,0.00041095,31]
[312439041,1705876404650,-587.25360532,0.00041095,31]
[312439042,1705876404672,-308.02701993,0.00041095,31]
[312439043,1705876404695,-500.0,0.00041095,31]
[312439044,1705876404719,-2125.13,0.00041095,31]
[312439045,1705876404743,-1186.92,0.00041095,31]
[312439046,1705876404767,-614.85443863,0.00041095,31]
[312439047,1705876404791,-1017.01,0.00041095,31]
[312439048,1705876404815,-2234.56,0.00041095,31]
[312439049,1705876404838,-500.0,0.00041095,31]
[312439050,1705876404862,-309.9974842,0.00041095,31]
[312439051,1705876404886,-1214.61,0.00041095,31]
[312439052,1705876404909,-500.0,0.00041095,31]
[312439053,1705876404932,-500.0,0.00041095,31]
[312439054,1705876404957,-500.0,0.00041095,31]
[312439055,1705876404982,-500.0,0.00041095,31]
[312439056,1705876405005,-550.46,0.00041095,31]
[312439057,1705876405030,-500.0,0.00041095,31]
[312439058,1705876405055,-980.04,0.00041095,31]
[312439059,1705876405079,-764.47,0.00041095,31]
[312439060,1705876405104,-500.0,0.00041095,31]
[312439061,1705876405130,-500.0,0.00041095,31]
[312439062,1705876405154,-500.0,0.00041095,31]
[312439063,1705876405179,-500.0,0.00041095,31]
[312439064,1705876405203,-500.0,0.00041095,31]
[312439065,1705876405227,-2635.33,0.00041095,31]
[312439066,1705876405252,-692.17,0.00041095,31]
[312439067,1705876405275,-500.0,0.00041095,31]
[312439068,1705876405299,-500.0,0.00041095,31]
[312439069,1705876405323,-500.0,0.00041095,31]
[312439070,1705876405349,-500.0,0.00041095,31]
[312439071,1705876405376,-589.26,0.00041095,31]
[312439072,1705876405406,-500.0,0.00041095,31]
[312439073,1705876405434,-505.71190594,0.00041095,31]
[312439074,1705876405461,-4050.53,0.00041095,31]
[312439075,1705876405485,-500.0,0.00041095,31]
[312439076,1705876405509,-500.0,0.00041095,31]
[312439077,1705876405534,-790.3,0.00041095,31]
[312439078,1705876405559,-1409.68,0.00041095,31]
[312439079,1705876405584,-884.87,0.00041095,31]
[312439080,1705876405608,-500.0,0.00041095,31]
[312439081,1705876405633,-500.0,0.00041095,31]
[312439082,1705876405657,-500.0,0.00041095,31]
[312439083,1705876405681,-500.0,0.00041095,31]
[312439084,1705876405706,-500.0,0.00041095,31]
[312439085,1705876405732,-500.0,0.00041095,31]
[312439086,1705876405758,-8615.3,0.00041095,31]
[312439087,1705876405782,-1164.14,0.00041095,31]
[312439088,1705876405806,-650.65,0.00041095,31]
[312439089,1705876405829,-509.39,0.00041095,31]
[312439090,1705876405853,-500.0,0.00041095,31]
[312439091,1705876405878,-7351.47,0.00041095,31]
[312439092,1705876405902,-500.0,0.00041095,31]
[312439093,1705876405926,-500.39,0.00041095,31]
[312439094,1705876405950,-500.0,0.00041095,31]
[312439095,1705876405978,-1317.68,0.00041095,31]
[312439096,1705876406002,-1079.83,0.00041095,30]
[312439097,1705876406027,-500.0,0.00041095,31]
[312439098,1705876406053,-500.0,0.00041095,31]
[312439099,1705876406077,-500.0,0.00041095,31]
[312439100,1705876406101,-500.0,0.00041095,31]
[312439101,1705876406125,-500.0,0.00041095,31]
[312439102,1705876406149,-773.48,0.00041095,31]
[312439103,1705876406173,-500.0,0.00041095,31]
[312439104,1705876406197,-500.0,0.00041095,31]
[312439105,1705876406222,-500.0,0.00041095,31]
[312439106,1705876406246,-500.0,0.00041095,31]
[312439107,1705876406269,-500.0,0.00041095,31]
[312439108,1705876406292,-500.0,0.00041095,31]
[312439109,1705876406316,-687.04,0.00041095,31]
[312439110,1705876406341,-2437.34,0.00041095,31]
[312439111,1705876406364,-500.0,0.00041095,31]
[312439112,1705876406388,-500.0,0.00041095,31]
[312439113,1705876406411,-500.0,0.00041095,31]
[312439114,1705876406436,-2353.8,0.00041095,31]
[312439115,1705876406460,-500.0,0.00041095,31]
[312439116,1705876406484,-500.0,0.00041095,31]
[312439117,1705876406507,-2671.1,0.00041095,31]
[312439118,1705876406530,-500.0,0.00041095,31]
[312439119,1705876406554,-500.0,0.00041095,31]
[312439120,1705876406578,-1627.9,0.00041095,31]
[312439121,1705876406602,-500.0,0.00041095,31]
[312439122,1705876406625,-500.0,0.00041095,31]
[312439123,1705876406648,-500.0,0.00041095,31]
[312439124,1705876406671,-500.0,0.00041095,31]
[312439125,1705876406694,-500.0,0.00041095,31]
[312439126,1705876406717,-500.0,0.00041095,31]
[312439127,1705876406745,-500.0,0.00041095,31]
[312439128,1705876406769,-701.03,0.00041095,31]
[312439129,1705876406793,-500.0,0.00041095,31]
[312439130,1705876407062,-744.64,0.00041095,31]
[312439131,1705876407088,-500.0,0.00041095,31]
[312439132,1705876407112,-722.25,0.00041095,31]
[312439133,1705876407136,-500.0,0.00041095,31]
[312439134,1705876407160,-1057.32,0.00041095,31]
[312439135,1705876407184,-500.0,0.00041095,31]
[312439136,1705876407208,-500.0,0.00041095,31]
[312439137,1705876407232,-500.0,0.00041095,31]
[312439138,1705876407256,-2605.29,0.00041095,31]
[312439139,1705876407280,-500.0,0.00041095,31]
[312439140,1705876407303,-500.0,0.00041095,31]
[312439141,1705876407326,-500.0,0.00041095,31]
[312439142,1705876407350,-628.07,0.00041095,31]
[312439143,1705876407375,-1869.91,0.00041095,31]
[312439144,1705876407399,-500.0,0.00041095,31]
[312439145,1705876407424,-853.42,0.00041095,31]
[312439146,1705876407448,-500.0,0.00041095,31]
[312439147,1705876407472,-500.0,0.00041095,31]
[312439148,1705876407496,-1463.45,0.00041095,31]
[312439149,1705876407519,-500.0,0.00041095,31]
[312439150,1705876407543,-500.0,0.00041095,31]
[312439151,1705876407566,-738.08,0.00041095,31]
[312439152,1705876407591,-500.0,0.00041095,31]
[312439153,1705876407614,-1856.37,0.00041095,31]
[312439154,1705876407638,-500.0,0.00041095,31]
[312439155,1705876407662,-500.0,0.00041095,31]
[312439156,1705876407687,-2717.95,0.00041095,31]
[312439157,1705876407711,-500.0,0.00041095,31]
[312439158,1705876407737,-500.0,0.00041095,31]
[312439159,1705876407761,-500.0,0.00041095,31]
[312439160,1705876407785,-500.0,0.00041095,31]
[312439161,1705876407808,-500.0,0.00041095,31]
[312439162,1705876407832,-500.0,0.00041095,31]
[312439163,1705876407855,-500.0,0.00041095,31]
[312439164,1705876407882,-500.0,0.00041095,31]
[312439165,1705876407906,-500.0,0.00041095,31]
[312439166,1705876407930,-500.0,0.00041095,31]
[312439167,1705876407954,-500.0,0.00041095,31]
[312439168,1705876407982,-3818.85,0.00041095,31]
[312439169,1705876408006,-671.9,0.00041095,31]
[312439170,1705876408032,-504.14,0.00041095,31]
[312439171,1705876408061,-500.0,0.00041095,31]
[312439172,1705876408084,-500.0,0.00041095,31]
[312439173,1705876408108,-480.01374201,0.00041095,31]
[312439174,1705876408131,-500.0,0.00041095,31]
[312439175,1705876408155,-576.78,0.00041095,31]
[312439176,1705876408180,-685.5,0.00041095,31]
[312439177,1705876408203,-500.0,0.00041095,31]
[312439178,1705876408227,-500.0,0.00041095,31]
[312439179,1705876408250,-500.0,0.00041095,31]
[312439180,1705876408273,-1834.73,0.00041095,31]
[312439181,1705876408297,-500.0,0.00041095,31]
[312439182,1705876408320,-782.28,0.00041095,31]
[312439183,1705876408344,-801.69,0.00041095,31]
[312439184,1705876408367,-500.0,0.00041095,31]
[312439185,1705876408391,-500.0,0.00041095,31]
[312439186,1705876408414,-7874.08,0.00041095,31]
[312439187,1705876408439,-500.0,0.00041095,31]
[312439188,1705876408464,-500.0,0.00041095,31]
[312439189,1705876408489,-508.28,0.00041095,31]
[312439190,1705876408514,-500.0,0.00041095,31]
[312439191,1705876408538,-1665.66,0.00041095,31]
[312439192,1705876408561,-500.0,0.00041095,31]
[312439193,1705876408585,-500.0,0.00041095,31]
[312439194,1705876408610,-500.0,0.00041095,31]
[312439195,1705876408635,-1435.39,0.00041095,31]
[312439196,1705876408659,-500.0,0.00041095,31]
[312439197,1705876408684,-500.0,0.00041095,31]
[312439198,1705876408709,-500.0,0.00041095,31]
[312439199,1705876408734,-3052.12,0.00041095,31]
[312439200,1705876408758,-1882.97,0.00041095,31]
[312439201,1705876408783,-1653.87,0.00041095,31]
[312439202,1705876408806,-500.0,0.00041095,31]
[312439203,1705876408829,-670.83,0.00041095,31]
[312439204,1705876408852,-500.0,0.00041095,31]
[312439205,1705876408875,-500.0,0.00041095,31]
[312439206,1705876408899,-794.26,0.00041095,31]
[312439207,1705876408924,-500.0,0.00041095,31]
[312439208,1705876408948,-500.0,0.00041095,31]
[312439209,1705876408974,-500.0,0.00041095,31]
[312439210,1705876408998,-705.2,0.00041095,31]
[312439211,1705876409022,-500.0,0.00041095,31]
[312439212,1705876409047,-500.0,0.00041095,31]
[312439213,1705876409069,-267.65687513,0.00041095,31]
[312439214,1705876409092,-782.76,0.00041095,31]
[312439215,1705876409115,-500.0,0.00041095,31]
[312439216,1705876409138,-500.0,0.00041095,31]
[312439217,1705876409162,-544.52,0.00041095,31]
[312439218,1705876409185,-500.0,0.00041095,31]
[312439219,1705876409208,-500.0,0.00041095,31]
[312439220,1705876409233,-711.05,0.00041095,31]
[312439221,1705876409256,-500.0,0.00041095,31]
[312439222,1705876409280,-500.0,0.00041095,31]
[312439223,1705876409303,-500.0,0.00041095,31]
[312439224,1705876409327,-1594.26,0.00041095,31]
[312439225,1705876409352,-500.0,0.00041095,31]
[312439226,1705876409375,-500.0,0.00041095,31]
[312439227,1705876409398,-500.0,0.00041095,31]
[312439228,1705876409422,-500.0,0.00041095,31]
[312439229,1705876409445,-3948.71,0.00041095,31]
[312439230,1705876409469,-500.0,0.00041095,31]
[312439231,1705876409493,-500.0,0.00041095,31]
[312439232,1705876409517,-1147.94,0.00041095,31]
[312439233,1705876409540,-500.0,0.00041095,31]
[312439234,1705876409563,-500.0,0.00041095,31]
[312439235,1705876409818,-500.0,0.00041095,31]
[312439236,1705876409843,-500.0,0.00041095,31]
[312439237,1705876409867,-500.0,0.00041095,31]
[312439238,1705876409893,-500.0,0.00041643,31]
[312439239,1705876409916,-500.0,0.00041643,31]
[312439240,1705876409939,-414.36220882,0.00041643,30]
[312439241,1705876409967,-500.0,0.00041643,31]
[312439242,1705876409992,-500.0,0.00041643,31]
[312439243,1705876410018,-500.0,0.00041643,31]
[312439244,1705876410041,-500.0,0.00041643,31]
[312439245,1705876410067,-500.0,0.00041643,31]
[312439246,1705876410091,-500.0,0.00041643,31]
[312439247,1705876410115,-500.0,0.00041643,31]
[312439248,1705876410140,-500.0,0.00041643,31]
[312439249,1705876410163,-500.0,0.00041643,31]
[312439250,1705876410187,-500.0,0.00041643,31]
[312439251,1705876410211,-500.0,0.00041643,31]
[312439252,1705876410234,-500.0,0.00041643,31]
[312439253,1705876410257,-500.0,0.00041643,31]
[312439254,1705876410281,-500.0,0.00041643,31]
[312439255,1705876410304,-500.0,0.00041643,31]
[312439256,1705876410327,-500.0,0.00041643,31]
[312439257,1705876410352,-500.0,0.00041643,31]
[312439258,1705876410375,-500.0,0.00041643,31]
[312439259,1705876410399,-500.0,0.00041643,31]
[312439260,1705876410423,-500.0,0.00041643,31]
[312439261,1705876410449,-500.0,0.00041643,31]
[312439262,1705876410473,-500.35998134,0.00041643,31]
[312439263,1705876410498,-500.0,0.00041643,31]
[312439264,1705876410522,-500.0,0.00041643,31]
[312439265,1705876410545,-343.60064025,0.00041643,31]
[312439266,1705876410570,-500.0,0.00041643,31]
[312439267,1705876410599,-500.0,0.00041643,31]
[312439268,1705876410622,-500.0,0.00041643,31]
[312439269,1705876410646,-500.0,0.00041643,31]